Cogmind - Beta 14 @@@ ROGUE MODE // 2024.12.07 @ 13:12:43 Player: Elly Result: Destroyed by G-34 Mercenary with Small Laser Performance ------------- Evolutions (1) 500 Regions Visited (3) 600 Robots Destroyed (15) 75 Value Destroyed (340) 340 Prototype IDs (0) 0 Alien Tech Used (0) 0 Bonus (0) 0 TOTAL SCORE: 1515 Bonus ------- None Cogmind --------- Core Integrity 0/400 Matter 295/300 Energy 98/100 System Corruption 21% Temperature Cool (15) Movement Core (100) Ox1 Location -9/Mines Parts ------- > --- POWER (2) -------- (None) > --- PROPULSION (2) --- (None) > --- UTILITY (3) ------ Small Storage Unit > --- WEAPON (2) ------- (None) > --- INVENTORY (8) ---- (None) Peak State ------------ > --- POWER ------------ Ion Engine Improved Ion Engine > --- PROPULSION ------- Light Treads Light Treads > --- UTILITY ---------- Small Storage Unit Visual Processing Unit Transport Network Coupler > --- WEAPON ----------- Beam Rifle Light Assault Rifle > --- INVENTORY -------- Light Ion Engine Light Treads [Rating: 12] Favorites ----------- Power Improved Ion Engine Engine Improved Ion Engine Propulsion Light Treads Treads Light Treads Utility Small Storage Unit Storage Small Storage Unit Processor Visual Processing Unit Weapon Light Assault Rifle Energy Gun Beam Rifle Ballistic Gun Light Assault Rifle Build | -11 -10 -9 -9 ------- Run | Yrd Mat Mat Min Slots Evolved 2 | . . 2 . Power 1 | . . 1 . Propulsion . | . . . . Utility 1 | . . 1 . Weapon . | . . . . Parts Attached 17 | 6 3 6 2 Power 5 | 1 1 2 1 Engine 5 | 1 1 2 1 Core . | . . . . Reactor . | . . . . Propulsion 4 | 2 . 1 1 Treads 4 | 2 . 1 1 Leg . | . . . . Wheel . | . . . . Hover . | . . . . Flight . | . . . . Utility 3 | 1 1 1 . Device . | . . . . Storage 1 | 1 . . . Processor 2 | . 1 1 . Hackware . | . . . . Protection . | . . . . Artifact . | . . . . Weapon 5 | 2 1 2 . Energy Gun 2 | . 1 1 . Energy Cannon . | . . . . Ballistic Gun 3 | 2 . 1 . Ballistic Cannon . | . . . . Launcher . | . . . . Special Weapon . | . . . . Impact Weapon . | . . . . Slashing Weapon . | . . . . Piercing Weapon . | . . . . Special Melee Weapon . | . . . . Unidentified Prototypes . | . . . . Parts Lost 11 | . . 1 10 Power 3 | . . . 3 Propulsion 3 | . . . 3 Utility 2 | . . . 2 Weapon 3 | . . 1 2 Highest Loss Streak 5 | . . 1 5 To Critical Strikes . | . . . . Average Slot Usage (%) 74 | . 88 87 54 Engine 14 | . 14 17 10 Treads 18 | . 28 22 9 Storage 11 | . 14 11 11 Processor 11 | . 3 14 11 Energy Gun 5 | . 5 9 . Ballistic Gun 13 | . 22 12 10 Peak Build Rating 12 | 6 7 12 12 Average Rating 7 | 4 6 9 6 On Entrance 6 | . 6 7 12 Naked Turns . | . . . . Heaviest Build 21 | 11 14 21 21 Greatest Support 40 | 40 40 40 40 Greatest Overweight (x) 4 | . . . 4 Average Overweight (x) . | . . . . Largest Inventory Capacity 8 | 8 8 8 8 Average Capacity 7 | 7 8 8 8 Most Carried 3 | 3 2 2 2 Average Carried 1 | . . 1 1 Final Capacity 8 | 8 8 8 8 Final Carried 2 | . 2 2 . Class Distribution -------------------- 78% | Mutant 21% | Scavenger-Mutant Dominant Class ---------------- Mutant | -10/Materials Scavenger-Mutant | -9/Materials Mutant | -9/Mines Resources | -11 -10 -9 -9 ----------- Run | Yrd Mat Mat Min Matter Collected 444 | 232 51 127 34 Remotely . | . . . . Salvage Created 413 | . 79 273 61 Parts 29 | . 7 21 1 Haulers Intercepted 1 | . 1 . . Recyclers Shooed . | . . . . Parts Field Recycled . | . . . . Retrieved Matter . | . . . . Parts Self-Destructed . | . . . . Prevented . | . . . . Kills | -11 -10 -9 -9 ------- Run | Yrd Mat Mat Min Combat Hostiles Destroyed 13 | . 1 9 3 Melee 1 | . . . 1 Guns 12 | . 1 9 2 Classes Destroyed 6 | . 2 3 1 Hauler 1 | . 1 . . Watcher 1 | . . 1 . Swarmer 6 | . . 6 . Grunt 4 | . 1 1 2 Brawler 1 | . . . 1 Sentry 2 | . . 2 . Best Kill Streak 6 | . 2 6 1 Combat Bots Only 6 | . 1 6 1 Max Kills in Single Turn 2 | . 1 2 1 Gunslinging 1 | . . 1 . Exploded . | . . . . Melee 1 | . . . 1 Uniques/NPCs Destroyed . | . . . . Combat | -11 -10 -9 -9 -------- Run | Yrd Mat Mat Min Hostile Shots Fired 148 | . 31 73 44 Missed 35 | . 8 18 9 Damage Taken 1460 | . 313 590 557 Core 466 | . 63 142 261 Absorbed by Shields . | . . . . Core Remaining (%) 87 | 100 74 . . Volleys Fired 58 | . 8 31 19 Largest 2 | . 2 2 1 Hottest 76 | . 70 76 20 Shots Fired 97 | . 16 62 19 Gun 97 | . 16 62 19 Cannon . | . . . . Launcher . | . . . . Special . | . . . . Kinetic 64 | . 8 37 19 Thermal 33 | . 8 25 . Explosive . | . . . . Electromagnetic . | . . . . Robot Hit Streak 7 | . 3 7 7 Robot Miss Streak 6 | . 2 6 2 Penetration Max . | . . . . Secondary Targets 2 | . . 2 . Max Gunslinging Chain 1 | . . 1 . Shots Hit Robots 61 | . 9 39 13 Core Hits 30 | . 3 15 12 Critical Kills 1 | . . . 1 Critical Parts Destroyed . | . . . . Critical Strikes 4 | . . 3 1 Burn 3 | . . 3 . Destroy 1 | . . . 1 Melee Attacks . | . . . . Impact . | . . . . Slashing . | . . . . Piercing . | . . . . Sneak Attacks . | . . . . Combat Hostiles . | . . . . Follow-up Attacks . | . . . . Damage Inflicted 700 | . 101 456 143 Guns 657 | . 99 456 102 Cannons . | . . . . Explosions . | . . . . Melee . | . . . . Ramming 43 | . 2 . 41 Kinetic 391 | . 48 241 102 Thermal 266 | . 51 215 . Explosive . | . . . . Electromagnetic . | . . . . Impact . | . . . . Slashing . | . . . . Piercing . | . . . . Highest Corruption 21 | . . . 21 Average Corruption 16 | . . . 16 Corruption Purged . | . . . . Corruption Blocked . | . . . . Effects 13 | . . . 13 Message Errors 3 | . . . 3 Matter Fused 3 | . . . 3 Heat Flow Errors 2 | . . . 2 Energy Discharges 1 | . . . 1 Data Loss (minor) 3 | . . . 3 Misdirections 1 | . . . 1 Overload Shots . | . . . . Overflow Damage . | . . . . Projectiles . | . . . . Explosions . | . . . . Melee . | . . . . Knockbacks . | . . . . Impact . | . . . . Kinetic . | . . . . Secondary . | . . . . Self-Inflicted Damage 5 | . . . 5 Shots . | . . . . Rammed 22 | . 1 . 21 Targets Rammed 23 | . 1 . 22 Kicked . | . . . . Crushed 1 | . . . 1 Highest Temperature 224 | . 63 224 187 Average Temperature 75 | . 25 87 83 Received Heat Transfer 510 | . 177 135 198 Siege Activations . | . . . . Robots Corrupted . | . . . . Combat Hostiles . | . . . . Parts Fried . | . . . . Impact Corruptions . | . . . . Robots Melted . | . . . . Combat Hostiles . | . . . . Parts Melted 2 | . . 2 . Heat Transferred 925 | . 148 777 . Parts Sabotaged . | . . . . Parts Stolen . | . . . . Parts Stripped . | . . . . Power Chain Reactions . | . . . . Alert | -11 -10 -9 -9 ------- Run | Yrd Mat Mat Min Peak Influence 268 | . 27 268 114 Initial 104 | . . 11 104 Average 69 | . 8 78 108 Maximum Alert Level 1 | . . 1 . Low Security (%) 98 | 100 100 95 100 Level 1 1 | . . 4 . Level 2 . | . . . . Level 3 . | . . . . Level 4 . | . . . . Level 5 . | . . . . High Security . | . . . . Max Security . | . . . . Squads Dispatched 1 | . . 1 . Investigation . | . . . . Extermination . | . . . . Reinforcement 1 | . . 1 . Assault . | . . . . Garrison . | . . . . Intercept . | . . . . Searches Triggered . | . . . . Construction Impeded . | . . . . Haulers Reinforced . | . . . . Active Scanning Responses . | . . . . Cargo Convoy Interrupts . | . . . . Stealth | -11 -10 -9 -9 --------- Run | Yrd Mat Mat Min Distress Signals 2 | . . 2 . Communications Jammed . | . . . . Distress Signals . | . . . . Times Spotted 23 | . 3 15 5 Peak Tracking Total 4 | . 2 4 3 Tactical Retreats . | . . . . Traps | -11 -10 -9 -9 ------- Run | Yrd Mat Mat Min Traps Triggered . | . . . . Indirectly . | . . . . Trap Hack Attempts . | . . . . Triggered . | . . . . Disarmed . | . . . . Reprogrammed . | . . . . Reused . | . . . . Traps Extracted . | . . . . Installed . | . . . . Triggered 1 | . . . 1 Machines | -11 -10 -9 -9 ---------- Run | Yrd Mat Mat Min Machines Disabled 1 | . . 1 . Max in Single Turn 1 | . . 1 . Machines Repaired . | . . . . Machines Dismantled . | . . . . Machines Sabotaged . | . . . . Overloaded Fab Kills . | . . . . Hacking | -11 -10 -9 -9 --------- Run | Yrd Mat Mat Min Machines Accessed 1 | . . 1 . Terminals 1 | . . 1 . Fabricators . | . . . . Repair Stations . | . . . . Recycling Units . | . . . . Scanalyzers . | . . . . Garrison Access . | . . . . Total Hacks 2 | . . 2 . Successful 1 | . . 1 . Failed 1 | . . 1 . Catastrophic . | . . . . Database Lockouts . | . . . . Manual . | . . . . Terminals 2 | . . 2 . Fabricators . | . . . . Repair Stations . | . . . . Recycling Units . | . . . . Scanalyzers . | . . . . Garrison Access . | . . . . Terminal Hacks 1 | . . 1 . Record 1 | . . 1 . Fabricator Hacks . | . . . . Repair Station Hacks . | . . . . Recycling Unit Hacks . | . . . . Scanalyzer . | . . . . Garrison Access Hacks . | . . . . Unauthorized Hacks . | . . . . Terminals . | . . . . Fabricators . | . . . . Repair Stations . | . . . . Recycling Units . | . . . . Scanalyzers . | . . . . Garrison Access . | . . . . Data Cores Recovered . | . . . . Used . | . . . . Hacking Detections . | . . . . Full Trace Events . | . . . . Feedback Events . | . . . . Feedback Blocked . | . . . . Robot Schematics Acquired . | . . . . Robots Built . | . . . . Authchips . | . . . . Time . | . . . . Total Robot Build Rating . | . . . . Part Schematics Acquired . | . . . . Parts Built . | . . . . Authchips . | . . . . Time . | . . . . Total Part Build Rating . | . . . . Parts Repaired . | . . . . Time . | . . . . Parts Recycled . | . . . . Recycled Matter . | . . . . Retrieved Matter . | . . . . Retrieved Components . | . . . . Parts Scanalyzed . | . . . . Part Schematics Acquired . | . . . . Parts Damaged . | . . . . Bothacking | -11 -10 -9 -9 ------------ Run | Yrd Mat Mat Min Used RIF Installer . | . . . . Robots Hacked . | . . . . Non-combat . | . . . . Combat . | . . . . Robot Hacks Applied . | . . . . Relay Couplers Released . | . . . . Fabnet Peak Effective % . | . . . . Robots Rewired . | . . . . Allies Hacked . | . . . . Hacks Repelled . | . . . . Allies | -11 -10 -9 -9 -------- Run | Yrd Mat Mat Min Total Allies . | . . . . Largest Group . | . . . . Highest-Rated Group . | . . . . Highest-Rated Ally . | . . . . Total Orders . | . . . . Ally Attacks . | . . . . Total Damage . | . . . . Kills . | . . . . Allies Corrupted . | . . . . Allies Melted . | . . . . Intel | -11 -10 -9 -9 ------- Run | Yrd Mat Mat Min Robot Analysis Total . | . . . . Derelict Logs Recovered . | . . . . Drone Launches . | . . . . Drone Recoveries . | . . . . Exploration | -11 -10 -9 -9 ------------- Run | Yrd Mat Mat Min Turns Passed 955 | 81 185 339 350 Spaces Moved 470 | 54 96 152 168 Core 47 | 14 . . 33 Treads 423 | 40 96 152 135 Legs . | . . . . Wheels . | . . . . Hover . | . . . . Flight . | . . . . Fastest Speed 50 | 50 160 160 100 Average Speed 158 | 131 160 160 165 Slowest Speed 250 | 160 160 160 250 Overloaded Moves . | . . . . Propulsion Burnouts . | . . . . Robots Hopped . | . . . . Cave-ins Triggered . | . . . . Exploration Rate (%) 20 | 4 23 16 37 Regions Visited 3 Branch Regions 1 Pre-discovered Areas . | . . . . Known Exits Taken . | . . . . Unknown Exits Taken 3 | 1 1 1 . Scrap Searched 2 | . . . 2 Spaces Dug . | . . . . Terrain Destroyed . | . . . . Melee . | . . . . Projectile . | . . . . AOE . | . . . . Terrain Rammed . | . . . . Walls Destroyed . | . . . . Machines Disabled . | . . . . Actions | -11 -10 -9 -9 --------- Run | Yrd Mat Mat Min Total 573 | 63 109 190 211 Wait 1 | . 1 . . Move 467 | 53 95 151 168 Hop . | . . . . Pick Up 6 | 4 1 1 . Fast Attach 4 | 2 1 1 . Attach 8 | 4 . 2 2 Detach . | . . . . Swap 5 | . 2 3 . Drop 1 | . . 1 . Fire 58 | . 8 31 19 Melee . | . . . . Ram 5 | . . . 5 Kick . | . . . . Crush 18 | . 1 . 17 Escape Stasis . | . . . . Rewire . | . . . . Trap . | . . . . Miscellaneous . | . . . . Route ------- -11/Scrapyard -10/Materials -9/Materials -9/Mines History --------- Turn | Location | Event 32 | -11/Scrapyard | Discovered new exit (range 15) 82 | -11/Scrapyard | Entered Materials 243 | -10/Materials | Discovered new exit (range 16) 267 | -10/Materials | Entered another Materials area 267 | -9/Materials | Evolved 2 slots: Power x1, Utility x1 310 | -9/Materials | Build established: Mutant 551 | -9/Materials | Discovered new exit (range 18) 606 | -9/Materials | Entered Mines 641 | -9/Mines | Core integrity fell below 50% 644 | -9/Mines | System corruption reached 10% 687 | -9/Mines | Lost 5 parts (1p2n1u1w) 947 | -9/Mines | Core integrity fell below 20% 956 | -9/Mines | Destroyed by G-34 Mercenary with Small Laser Last Messages --------------- System corrupted: Energy discharge (-103). Slammed into T-07 Excavator. K-01 Serf collects debris. Critical hit (Burn: +37). K-01 Serf collects debris. Imp. Ion Engine destroyed. K-01 Serf collects debris. CTRGANTQ OND O3N4FBXT10KEAA0 Lgt. Treads destroyed. K-01 Serf collects debris. G-34 Mercenary destroyed. Lgt. Assault Rifle destroyed. Slammed into G-34 Mercenary. Slammed into G-47 Trooper. Visual Processing Unit destroyed. System corrupted by crushing effect (+4). R-06 Scavenger collects Sml. Laser. Slammed into G-47 Trooper. System corrupted: Component data lost. Lgt. Ion Engine destroyed. Map ----- +----------------------------------------------------+ | ??# #???#%#????????????????# ## ## | | ??##########???# #????????????????# ### | | ???????????????# #????????????????# #?## | | ???????????????# #????????????????# #??# ## | | ???????????????# #????????????????# #??## #? | | ???????????????# #????????????????# #???## # | | ???????????????# #????????????????# #????### | | ???????????????# #????????????????# #??????## ## | | ???????????????# #????????????????# ##??????####? | | ???????????????# #????????????????# $ #??????????? | | ???????????????# #????????????????# #???????#### | | ???????????????# #????????????###### ###?????# | | ???????????????# #????????????# ## ##????# | | ???????????????# #####?###????# ##???# # | | ???????????????# ## ## ##???## ##### # | | ?# ### #########%# #???## # | | ?# t% #???# # | | ???????##### %ggr #????# ## ######## | | ???????????# ### #????## ##? #??????? | | ??????????# ?## ##?????## ### #??????? | | ??????????# ??# #???????# #??????? | | ??????????# ???# ##??????## ### #??? | | ??????????#????## ## ##??????### #????## #??? | | ????????????????###### t#####????# #??????????? | | ?????????????????????# ###### #??????????? | | ?????????????????????# @ t k ! #??????????? | | ?????????????????????## %% #??????????? | | ??????????????????????#################??????????? | | ?????????????????????????????????????????????????? | | ?????????????????????????????????????????????????? | | ?????????????????????????????????????????????????? | | ?????????????????????????????????????????????????? | | ?????????????????????????????????????????????????? | | ?????????????????????????????????????????????????? | | ?????????????????????????????????????????????????? | | ?????????????????????????????????????????????????? | | ?????????????????????????????????????????????????? | | ?????????????????????????????????????????????????? | | ?????????????????????????????????????????????????? | | ?????????????????????????????????????????????????? | | ?????????????????????????????????????????????????? | | ?????????????????????????????????????????????????? | | ?????????????????????????????????????????????????? | | ?????????????????????????????????????????????????? | | ?????????????????????????????????????????????????? | | ?????????????????????????????????????????????????? | | ?????????????????????????????????????????????????? | | ?????????????????????????????????????????????????? | | ?????????????????????????????????????????????????? | | ?????????????????????????????????????????????????? | +----------------------------------------------------+ Best States ------------- Heat Dissipation 28 Energy Generation 17 Energy Capacity 415 Matter Stores 300 Matter Capacity 300 Sight Range 18 Terrain Scan Density 10 Evasion (%) 50 Recoil Reduction 2 Item Schematics ----------------- None Robot Schematics ------------------ None Fabricated ------------ Nothing Alien Tech Used ----------------- None Achievements -------------- Loot Pinata Challenges ------------ None Game ------ Seed OpticalPitchforkBooster Manual? 0 Play Time 00:18:01 Cumulative 1.5 hours Start 2024.12.07 @ 12:57:12 End 2024.12.07 @ 13:12:43 Sessions 1 Manual Loads 0 Difficulty Rogue Special Mode None Game No. 4 Rogue 4 Adventurer 0 Explorer 0 Win Type - Total 0 Types 0/0/0/0/0/0/0/0/0 Lore% 2 Gallery% 3 Achievement% 4 Wizard Run 0 Options --------- Layout 1 ASCII 0 Keyboard 0 Movement Numpad Keybinds 0 Fullscreen 0 Font 24/Smallcaps Map View 50x35 Zoom Use 0% Tactical HUD 0 Map Filters NONE Filters NONE Steam 1 RUN: 85a3b8f9-a189-42f2-b893-29216ccd95dd